[Event "Titled Tuesday Blitz July 6 2021"]
[White "Gabrielian, Artur"]
[Black "Leiva, Gianmarco"]
[WhiteFideId "4131002"]
[BlackFideId "3804399"]
[WhiteElo "2523"]
[BlackElo "2365"]
[Result "1-0"]
[Round "07"]
[TimeControl "180+1"]
[Date "2021.07.06"]
[WhiteClock "0:00:12"]
[BlackClock "0:00:08"]

1. e4 {[%clk 0:03:00]}  c6 {[%clk 0:02:59]} 2. d4 {[%clk 0:02:59]}  d5 {[%clk 0:03:00]} 3. e5 {[%clk 0:02:58]}  Bf5 {[%clk 0:02:59]} 4. Bd3 {[%clk 0:02:58]}  Bxd3 {[%clk 0:02:57]} 5. Qxd3 {[%clk 0:02:59]}  e6 {[%clk 0:02:56]} 6. Ne2 {[%clk 0:02:57]}  c5 {[%clk 0:02:51]} 7. c3 {[%clk 0:02:54]}  Qb6 {[%clk 0:02:51]} 8. Nd2 {[%clk 0:02:46]}  Nc6 {[%clk 0:02:50]} 9. O-O {[%clk 0:02:45]}  cxd4 {[%clk 0:02:45]} 10. cxd4 {[%clk 0:02:45]}  Rc8 {[%clk 0:02:39]} 11. a3 {[%clk 0:02:45]}  Nge7 {[%clk 0:02:31]} 12. Nf3 {[%clk 0:02:43]}  Na5 {[%clk 0:02:30]} 13. Nc3 {[%clk 0:02:37]}  Nf5 {[%clk 0:02:19]} 14. Nxd5 {[%clk 0:02:35]}  Qa6 {[%clk 0:01:35]} 15. Qxa6 {[%clk 0:02:04]}  bxa6 {[%clk 0:01:35]} 16. g4 {[%clk 0:01:59]}  Nb3 {[%clk 0:01:26]} 17. gxf5 {[%clk 0:01:53]}  Nxa1 {[%clk 0:01:17]} 18. fxe6 {[%clk 0:01:53]}  fxe6 {[%clk 0:01:17]} 19. Nf4 {[%clk 0:01:52]}  Kd7 {[%clk 0:01:08]} 20. Ng5 {[%clk 0:01:32]}  h6 {[%clk 0:01:04]} 21. Ngxe6 {[%clk 0:01:29]}  g5 {[%clk 0:00:48]} 22. Nxf8+ {[%clk 0:01:21]}  Rhxf8 {[%clk 0:00:47]} 23. Nd3 {[%clk 0:01:17]}  Nb3 {[%clk 0:00:43]} 24. Be3 {[%clk 0:01:16]}  Ke6 {[%clk 0:00:40]} 25. Rd1 {[%clk 0:01:14]}  Rfd8 {[%clk 0:00:34]} 26. Nb4 {[%clk 0:00:46]}  a5 {[%clk 0:00:32]} 27. Na2 {[%clk 0:00:40]}  Rc4 {[%clk 0:00:24]} 28. Nc3 {[%clk 0:00:28]}  Nxd4 {[%clk 0:00:23]} 29. Kg2 {[%clk 0:00:26]}  Nc6 {[%clk 0:00:19]} 30. Re1 {[%clk 0:00:25]}  Rb8 {[%clk 0:00:16]} 31. Re2 {[%clk 0:00:24]}  Rb3 {[%clk 0:00:13]} 32. Rd2 {[%clk 0:00:19]}  Nxe5 {[%clk 0:00:11]} 33. Bxa7 {[%clk 0:00:19]}  g4 {[%clk 0:00:04]} 34. Be3 {[%clk 0:00:18]}  h5 {[%clk 0:00:03]} 35. Re2 {[%clk 0:00:17]}  Kf5 {[%clk 0:00:03]} 36. Nd5 {[%clk 0:00:18]}  Nf3 {[%clk 0:00:03]} 37. Ne7+ {[%clk 0:00:17]}  Kf6 {[%clk 0:00:03]} 38. Nd5+ {[%clk 0:00:17]}  Kf5 {[%clk 0:00:03]} 39. Ne7+ {[%clk 0:00:16]}  Kf6 {[%clk 0:00:03]} 40. Nd5+ {[%clk 0:00:17]}  Kf7 {[%clk 0:00:04]} 41. Nf4 {[%clk 0:00:15]}  Nh4+ {[%clk 0:00:03]} 42. Kg3 {[%clk 0:00:13]}  Nf5+ {[%clk 0:00:04]} 43. Kg2 {[%clk 0:00:14]}  Nh4+ {[%clk 0:00:04]} 44. Kg3 {[%clk 0:00:14]}  Nf5+ {[%clk 0:00:04]} 45. Kg2 {[%clk 0:00:15]}  Nxe3+ {[%clk 0:00:02]} 46. fxe3 {[%clk 0:00:15]}  h4 {[%clk 0:00:02]} 47. h3 {[%clk 0:00:15]}  gxh3+ {[%clk 0:00:02]} 48. Nxh3 {[%clk 0:00:13]}  Rg4+ {[%clk 0:00:02]} 49. Kh2 {[%clk 0:00:13]}  Re4 {[%clk 0:00:01]} 50. Ng5+ {[%clk 0:00:13]}  Kf6 {[%clk 0:00:02]} 51. Nxe4+ {[%clk 0:00:13]}  Kf5 {[%clk 0:00:03]} 52. Nf2 {[%clk 0:00:13]}  Rxe3 {[%clk 0:00:01]} 53. Rxe3 {[%clk 0:00:13]}  Kf4 {[%clk 0:00:02]} 54. Rh3 {[%clk 0:00:13]}  Kg5 {[%clk 0:00:02]} 55. Ne4+ {[%clk 0:00:13]}  Kg4 {[%clk 0:00:02]} 56. a4 {[%clk 0:00:13]}  Kh5 {[%clk 0:00:02]} 57. Nd6 {[%clk 0:00:14]}  Kg4 {[%clk 0:00:02]} 58. Nc4 {[%clk 0:00:14]}  Kf4 {[%clk 0:00:03]} 59. Nxa5 {[%clk 0:00:14]}  Kg4 {[%clk 0:00:03]} 60. Nb7 {[%clk 0:00:14]}  Kf4 {[%clk 0:00:04]} 61. a5 {[%clk 0:00:14]}  Kg4 {[%clk 0:00:04]} 62. a6 {[%clk 0:00:15]}  Kf4 {[%clk 0:00:05]} 63. a7 {[%clk 0:00:15]}  Kg4 {[%clk 0:00:05]} 64. a8=Q {[%clk 0:00:16]}  Kf4 {[%clk 0:00:04]} 65. Rxh4+ {[%clk 0:00:16]}  Kg5 {[%clk 0:00:04]} 66. Kg3 {[%clk 0:00:16]}  Kf5 {[%clk 0:00:04]} 67. Kf3 {[%clk 0:00:17]}  Ke5 {[%clk 0:00:05]} 68. Re4+ {[%clk 0:00:16]}  Kd5 {[%clk 0:00:06]} 69. Qa5+ {[%clk 0:00:16]}  Kc6 {[%clk 0:00:06]} 70. Re6+ {[%clk 0:00:16]}  Kd7 {[%clk 0:00:07]} 71. Qd5+ {[%clk 0:00:16]}  Kc8 {[%clk 0:00:07]} 72. Qc6+ {[%clk 0:00:13]}  Kb8 {[%clk 0:00:08]} 73. Nc5 {[%clk 0:00:12]} 1-0


[Site "https://www.chess.com"]

[Event "Titled Tuesday Blitz July 6 2021"]
[White "Garcia Blanco, Omar"]
[Black "Dang, Hoang Son"]
[WhiteFideId "2287153"]
[BlackFideId "12402435"]
[WhiteElo "2273"]
[BlackElo "2248"]
[Result "1-0"]
[Round "07"]
[TimeControl "180+1"]
[Date "2021.07.06"]
[WhiteClock "0:00:06"]
[BlackClock "0:00:40"]

1. d4 {[%clk 0:03:00]}  Nf6 {[%clk 0:02:58]} 2. Bg5 {[%clk 0:02:57]}  c5 {[%clk 0:02:58]} 3. Bxf6 {[%clk 0:02:50]}  gxf6 {[%clk 0:02:56]} 4. e3 {[%clk 0:02:44]}  Qb6 {[%clk 0:02:54]} 5. Nf3 {[%clk 0:02:15]}  Qxb2 {[%clk 0:02:52]} 6. Nbd2 {[%clk 0:02:14]}  Qb6 {[%clk 0:02:51]} 7. Nc4 {[%clk 0:02:11]}  Qc7 {[%clk 0:02:48]} 8. d5 {[%clk 0:02:01]}  b5 {[%clk 0:02:46]} 9. Nb2 {[%clk 0:01:32]}  Ba6 {[%clk 0:02:32]} 10. Be2 {[%clk 0:01:16]}  Qa5+ {[%clk 0:02:30]} 11. Qd2 {[%clk 0:01:08]}  Qxd2+ {[%clk 0:02:25]} 12. Nxd2 {[%clk 0:01:01]}  d6 {[%clk 0:02:25]} 13. c4 {[%clk 0:00:59]}  b4 {[%clk 0:02:20]} 14. a3 {[%clk 0:00:57]}  Bb7 {[%clk 0:02:18]} 15. axb4 {[%clk 0:00:56]}  cxb4 {[%clk 0:02:19]} 16. Nb3 {[%clk 0:00:56]}  Na6 {[%clk 0:02:02]} 17. O-O {[%clk 0:00:16]}  Bg7 {[%clk 0:01:54]} 18. Ra4 {[%clk 0:00:09]}  f5 {[%clk 0:01:53]} 19. Nd3 {[%clk 0:00:09]}  Bc3 {[%clk 0:01:53]} 20. Rc1 {[%clk 0:00:07]}  Kd7 {[%clk 0:01:52]} 21. Bf3 {[%clk 0:00:07]}  Rhc8 {[%clk 0:01:49]} 22. Na5 {[%clk 0:00:07]}  Rc7 {[%clk 0:01:41]} 23. Nxb7 {[%clk 0:00:07]}  Rxb7 {[%clk 0:01:42]} 24. Rxa6 {[%clk 0:00:07]}  Rc8 {[%clk 0:01:38]} 25. g3 {[%clk 0:00:06]}  Rxc4 {[%clk 0:01:37]} 26. Be2 {[%clk 0:00:06]}  Rc8 {[%clk 0:01:33]} 27. Rb1 {[%clk 0:00:06]}  e5 {[%clk 0:01:31]} 28. dxe6+ {[%clk 0:00:06]}  fxe6 {[%clk 0:01:31]} 29. Ra4 {[%clk 0:00:06]}  Rcb8 {[%clk 0:01:31]} 30. Nc1 {[%clk 0:00:05]}  e5 {[%clk 0:01:26]} 31. Nb3 {[%clk 0:00:05]}  Rc7 {[%clk 0:01:24]} 32. Kf1 {[%clk 0:00:06]}  d5 {[%clk 0:01:24]} 33. Rd1 {[%clk 0:00:05]}  Kd6 {[%clk 0:01:23]} 34. Bf3 {[%clk 0:00:06]}  e4 {[%clk 0:01:23]} 35. Be2 {[%clk 0:00:05]}  Ke5 {[%clk 0:01:05]} 36. Ra5 {[%clk 0:00:05]}  Rd8 {[%clk 0:01:06]} 37. Nd4 {[%clk 0:00:04]}  Bxd4 {[%clk 0:01:02]} 38. Rxd4 {[%clk 0:00:04]}  Rc1+ {[%clk 0:00:57]} 39. Kg2 {[%clk 0:00:04]}  b3 {[%clk 0:00:58]} 40. Rb5 {[%clk 0:00:04]}  Rc2 {[%clk 0:00:58]} 41. Bh5 {[%clk 0:00:04]}  b2 {[%clk 0:00:58]} 42. Rdb4 {[%clk 0:00:04]}  a6 {[%clk 0:00:53]} 43. Rxb2 {[%clk 0:00:04]}  Rxb2 {[%clk 0:00:44]} 44. Rxb2 {[%clk 0:00:05]}  a5 {[%clk 0:00:44]} 45. Ra2 {[%clk 0:00:05]}  Ra8 {[%clk 0:00:43]} 46. Bd1 {[%clk 0:00:05]}  d4 {[%clk 0:00:43]} 47. exd4+ {[%clk 0:00:05]}  Kxd4 {[%clk 0:00:44]} 48. Kf1 {[%clk 0:00:05]}  Kc3 {[%clk 0:00:45]} 49. Ke2 {[%clk 0:00:05]}  Kb4 {[%clk 0:00:44]} 50. Ra4+ {[%clk 0:00:06]}  Kb5 {[%clk 0:00:44]} 51. g4 {[%clk 0:00:06]}  f4 {[%clk 0:00:43]} 52. Rxe4 {[%clk 0:00:05]}  Rf8 {[%clk 0:00:44]} 53. Ba4+ {[%clk 0:00:03]}  Kc5 {[%clk 0:00:43]} 54. Kf3 {[%clk 0:00:04]}  Rd8 {[%clk 0:00:42]} 55. Rxf4 {[%clk 0:00:03]}  Rd3+ {[%clk 0:00:42]} 56. Kg2 {[%clk 0:00:04]}  Ra3 {[%clk 0:00:41]} 57. h4 {[%clk 0:00:04]}  Kd5 {[%clk 0:00:41]} 58. Rf5+ {[%clk 0:00:03]}  Ke6 {[%clk 0:00:40]} 59. Rxa5 {[%clk 0:00:03]}  Kf6 {[%clk 0:00:39]} 60. Ra6+ {[%clk 0:00:03]}  Ke5 {[%clk 0:00:39]} 61. f3 {[%clk 0:00:02]}  Kf4 {[%clk 0:00:39]} 62. Rf6+ {[%clk 0:00:01]}  Ke3 {[%clk 0:00:39]} 63. Bc6 {[%clk 0:00:02]}  Ra2+ {[%clk 0:00:39]} 64. Kg3 {[%clk 0:00:03]}  Ra1 {[%clk 0:00:40]} 65. g5 {[%clk 0:00:03]}  Rg1+ {[%clk 0:00:39]} 66. Kh3 {[%clk 0:00:04]}  Kf2 {[%clk 0:00:39]} 67. g6 {[%clk 0:00:03]}  Rg3+ {[%clk 0:00:39]} 68. Kh2 {[%clk 0:00:03]}  hxg6 {[%clk 0:00:39]} 69. h5 {[%clk 0:00:03]}  gxh5 {[%clk 0:00:37]} 70. f4 {[%clk 0:00:04]}  Rg4 {[%clk 0:00:37]} 71. Kh3 {[%clk 0:00:04]}  Ke3 {[%clk 0:00:37]} 72. f5 {[%clk 0:00:04]}  Kf4 {[%clk 0:00:37]} 73. Rf8 {[%clk 0:00:04]}  Rg3+ {[%clk 0:00:38]} 74. Kh4 {[%clk 0:00:04]}  Rc3 {[%clk 0:00:39]} 75. Kxh5 {[%clk 0:00:04]}  Rxc6 {[%clk 0:00:39]} 76. f6 {[%clk 0:00:04]}  Kf5 {[%clk 0:00:39]} 77. f7 {[%clk 0:00:03]}  Rc7 {[%clk 0:00:38]} 78. Kh6 {[%clk 0:00:02]}  Kf6 {[%clk 0:00:38]} 79. Rg8 {[%clk 0:00:02]}  Rxf7 {[%clk 0:00:38]} 80. Rg6+ {[%clk 0:00:02]}  Kf5 {[%clk 0:00:38]} 81. Rg5+ {[%clk 0:00:03]}  Kf4 {[%clk 0:00:38]} 82. Rg6 {[%clk 0:00:04]}  Kf5 {[%clk 0:00:37]} 83. Rg5+ {[%clk 0:00:04]}  Ke4 {[%clk 0:00:37]} 84. Rg6 {[%clk 0:00:05]}  Rf2 {[%clk 0:00:38]} 85. Rg4+ {[%clk 0:00:05]}  Kf5 {[%clk 0:00:38]} 86. Rg5+ {[%clk 0:00:05]}  Kf6 {[%clk 0:00:38]} 87. Rg6+ {[%clk 0:00:06]}  Kf7 {[%clk 0:00:38]} 88. Rg7+ {[%clk 0:00:06]}  Kf8 {[%clk 0:00:39]} 89. Rg5 {[%clk 0:00:07]}  Rf5 {[%clk 0:00:40]} 90. Rxf5+ {[%clk 0:00:06]} 1-0


[Site "https://www.chess.com"]

[Event "Titled Tuesday Blitz July 6 2021"]
[White "Garcia, Gabriel Gonzaga"]
[Black "Moskalenko, Alexander"]
[WhiteFideId "2138956"]
[BlackFideId "4155351"]
[WhiteElo "2240"]
[BlackElo "2495"]
[Result "0-1"]
[Round "07"]
[TimeControl "180+1"]
[Date "2021.07.06"]
[WhiteClock "0:02:46"]
[BlackClock "0:02:24"]

1. e4 {[%clk 0:02:58]}  c5 {[%clk 0:02:46]} 2. Nf3 {[%clk 0:02:59]}  d6 {[%clk 0:02:45]} 3. d4 {[%clk 0:02:59]}  cxd4 {[%clk 0:02:46]} 4. Qxd4 {[%clk 0:03:00]}  Nf6 {[%clk 0:02:47]} 5. Bb5+ {[%clk 0:03:00]}  Nc6 {[%clk 0:02:47]} 6. Nc3 {[%clk 0:02:59]}  Bd7 {[%clk 0:02:47]} 7. Bxc6 {[%clk 0:02:59]}  Bxc6 {[%clk 0:02:48]} 8. Bg5 {[%clk 0:03:00]}  e6 {[%clk 0:02:43]} 9. O-O-O {[%clk 0:03:00]}  Be7 {[%clk 0:02:43]} 10. Qd3 {[%clk 0:03:00]}  O-O {[%clk 0:02:44]} 11. Nd4 {[%clk 0:03:00]}  Qa5 {[%clk 0:02:44]} 12. f4 {[%clk 0:03:00]}  Rfc8 {[%clk 0:02:44]} 13. Kb1 {[%clk 0:02:58]}  Rab8 {[%clk 0:02:44]} 14. g4 {[%clk 0:02:58]}  b5 {[%clk 0:02:44]} 15. Nxc6 {[%clk 0:02:58]}  Rxc6 {[%clk 0:02:43]} 16. e5 {[%clk 0:02:58]}  b4 {[%clk 0:02:28]} 17. exf6 {[%clk 0:02:56]}  bxc3 {[%clk 0:02:25]} 18. fxe7 {[%clk 0:02:45]}  Rxb2+ {[%clk 0:02:24]} 19. Kc1 {[%clk 0:02:46]}  Rb1+ {[%clk 0:02:24]} 0-1


[Site "https://www.chess.com"]

[Event "Titled Tuesday Blitz July 6 2021"]
[White "Gedajlovic, Max"]
[Black "Dobrov, Vladimir"]
[WhiteFideId "2616840"]
[BlackFideId "4136594"]
[WhiteElo "2560"]
[BlackElo "2774"]
[Result "0-1"]
[Round "07"]
[TimeControl "180+1"]
[Date "2021.07.06"]
[WhiteClock "0:00:03"]
[BlackClock "0:00:12"]

1. d4 {[%clk 0:03:00]}  Nf6 {[%clk 0:02:59]} 2. c4 {[%clk 0:02:59]}  e6 {[%clk 0:02:58]} 3. Nf3 {[%clk 0:02:57]}  c5 {[%clk 0:02:55]} 4. d5 {[%clk 0:02:56]}  exd5 {[%clk 0:02:56]} 5. cxd5 {[%clk 0:02:56]}  Bd6 {[%clk 0:02:56]} 6. Nc3 {[%clk 0:02:54]}  Bc7 {[%clk 0:02:57]} 7. e4 {[%clk 0:02:48]}  d6 {[%clk 0:02:56]} 8. Bd3 {[%clk 0:02:48]}  O-O {[%clk 0:02:56]} 9. h3 {[%clk 0:02:47]}  a6 {[%clk 0:02:57]} 10. a4 {[%clk 0:02:46]}  Re8 {[%clk 0:02:57]} 11. O-O {[%clk 0:02:45]}  Nbd7 {[%clk 0:02:57]} 12. Bf4 {[%clk 0:02:44]}  Nf8 {[%clk 0:02:57]} 13. Re1 {[%clk 0:02:43]}  Ng6 {[%clk 0:02:57]} 14. Bh2 {[%clk 0:02:43]}  Rb8 {[%clk 0:02:58]} 15. Qe2 {[%clk 0:01:58]}  Qd7 {[%clk 0:02:48]} 16. Rad1 {[%clk 0:01:54]}  h6 {[%clk 0:02:45]} 17. Qc2 {[%clk 0:01:24]}  b5 {[%clk 0:02:31]} 18. axb5 {[%clk 0:01:22]}  axb5 {[%clk 0:02:31]} 19. e5 {[%clk 0:01:22]}  Nxe5 {[%clk 0:02:31]} 20. Nxe5 {[%clk 0:01:19]}  dxe5 {[%clk 0:02:31]} 21. Nxb5 {[%clk 0:01:19]}  Rxb5 {[%clk 0:02:29]} 22. Bxb5 {[%clk 0:01:20]}  Qxb5 {[%clk 0:02:29]} 23. d6 {[%clk 0:01:21]}  Bb8 {[%clk 0:02:25]} 24. Rxe5 {[%clk 0:01:19]}  Be6 {[%clk 0:01:46]} 25. Rxc5 {[%clk 0:01:16]}  Qb7 {[%clk 0:01:46]} 26. Qa4 {[%clk 0:01:07]}  Bb3 {[%clk 0:01:39]} 27. Qxe8+ {[%clk 0:01:03]}  Nxe8 {[%clk 0:01:38]} 28. d7 {[%clk 0:01:04]}  Bxh2+ {[%clk 0:01:25]} 29. Kxh2 {[%clk 0:00:44]}  Qb8+ {[%clk 0:01:23]} 30. g3 {[%clk 0:00:44]}  Bxd1 {[%clk 0:01:20]} 31. Rc8 {[%clk 0:00:44]}  Qb7 {[%clk 0:01:16]} 32. dxe8=Q+ {[%clk 0:00:40]}  Kh7 {[%clk 0:01:16]} 33. Qg8+ {[%clk 0:00:26]}  Kg6 {[%clk 0:01:15]} 34. Qd8 {[%clk 0:00:26]}  Bf3 {[%clk 0:01:10]} 35. Qd3+ {[%clk 0:00:22]}  Be4 {[%clk 0:01:07]} 36. Rc7 {[%clk 0:00:16]}  Qxc7 {[%clk 0:00:55]} 37. Qxe4+ {[%clk 0:00:16]}  Kf6 {[%clk 0:00:48]} 38. b4 {[%clk 0:00:14]}  Qa7 {[%clk 0:00:43]} 39. Kg2 {[%clk 0:00:14]}  Qb6 {[%clk 0:00:33]} 40. h4 {[%clk 0:00:12]}  g5 {[%clk 0:00:33]} 41. hxg5+ {[%clk 0:00:12]}  hxg5 {[%clk 0:00:34]} 42. Qf3+ {[%clk 0:00:11]}  Kg7 {[%clk 0:00:11]} 43. Qc3+ {[%clk 0:00:11]}  f6 {[%clk 0:00:11]} 44. Qc5 {[%clk 0:00:11]}  Qb7+ {[%clk 0:00:12]} 45. Kg1 {[%clk 0:00:10]}  Kf7 {[%clk 0:00:08]} 46. b5 {[%clk 0:00:10]}  Ke6 {[%clk 0:00:08]} 47. b6 {[%clk 0:00:08]}  Kd7 {[%clk 0:00:08]} 48. Qd4+ {[%clk 0:00:06]}  Ke6 {[%clk 0:00:08]} 49. Qc4+ {[%clk 0:00:06]}  Kd6 {[%clk 0:00:09]} 50. Qd4+ {[%clk 0:00:06]}  Ke6 {[%clk 0:00:09]} 51. Kf1 {[%clk 0:00:06]}  Qa6+ {[%clk 0:00:08]} 52. Ke1 {[%clk 0:00:07]}  Qa5+ {[%clk 0:00:08]} 53. Ke2 {[%clk 0:00:07]}  Qb5+ {[%clk 0:00:08]} 54. Kf3 {[%clk 0:00:06]}  f5 {[%clk 0:00:07]} 55. Qe3+ {[%clk 0:00:05]}  Kf6 {[%clk 0:00:08]} 56. Qc3+ {[%clk 0:00:06]}  Kg6 {[%clk 0:00:07]} 57. Ke3 {[%clk 0:00:06]}  Kh5 {[%clk 0:00:07]} 58. Qh8+ {[%clk 0:00:06]}  Kg4 {[%clk 0:00:07]} 59. f3+ {[%clk 0:00:06]}  Kxg3 {[%clk 0:00:07]} 60. Qb8+ {[%clk 0:00:06]}  f4+ {[%clk 0:00:07]} 61. Ke4 {[%clk 0:00:06]}  Qc4+ {[%clk 0:00:08]} 62. Kf5 {[%clk 0:00:07]}  Kxf3 {[%clk 0:00:08]} 63. b7 {[%clk 0:00:07]}  Qd5+ {[%clk 0:00:08]} 64. Kf6 {[%clk 0:00:08]}  g4 {[%clk 0:00:09]} 65. Qc8 {[%clk 0:00:08]}  Qd6+ {[%clk 0:00:09]} 66. Kf7 {[%clk 0:00:08]}  Qd5+ {[%clk 0:00:09]} 67. Ke7 {[%clk 0:00:09]}  Qe5+ {[%clk 0:00:09]} 68. Kd7 {[%clk 0:00:09]}  Qd5+ {[%clk 0:00:09]} 69. Kc7 {[%clk 0:00:09]}  Qc5+ {[%clk 0:00:08]} 70. Kd7 {[%clk 0:00:10]}  Qf5+ {[%clk 0:00:08]} 71. Kd6 {[%clk 0:00:10]}  Qf6+ {[%clk 0:00:08]} 72. Kd5 {[%clk 0:00:10]}  Qf7+ {[%clk 0:00:08]} 73. Kc5 {[%clk 0:00:10]}  Qe7+ {[%clk 0:00:08]} 74. Kb5 {[%clk 0:00:10]}  Qe5+ {[%clk 0:00:08]} 75. Qc5 {[%clk 0:00:10]}  Qb2+ {[%clk 0:00:08]} 76. Qb4 {[%clk 0:00:10]}  Qe5+ {[%clk 0:00:08]} 77. Ka6 {[%clk 0:00:10]}  Qb8 {[%clk 0:00:08]} 78. Qc3+ {[%clk 0:00:08]}  Kg2 {[%clk 0:00:08]} 79. Qc8 {[%clk 0:00:07]}  Qd6+ {[%clk 0:00:08]} 80. Ka7 {[%clk 0:00:08]}  Qa3+ {[%clk 0:00:08]} 81. Kb6 {[%clk 0:00:08]}  Qb4+ {[%clk 0:00:08]} 82. Kc6 {[%clk 0:00:09]}  Qc4+ {[%clk 0:00:08]} 83. Kd7 {[%clk 0:00:09]}  Qf7+ {[%clk 0:00:07]} 84. Kd8 {[%clk 0:00:09]}  Qf8+ {[%clk 0:00:07]} 85. Kc7 {[%clk 0:00:10]}  Qc5+ {[%clk 0:00:08]} 86. Kd7 {[%clk 0:00:10]}  Qd5+ {[%clk 0:00:08]} 87. Ke7 {[%clk 0:00:11]}  Qe5+ {[%clk 0:00:09]} 88. Kf7 {[%clk 0:00:11]}  Qd5+ {[%clk 0:00:09]} 89. Kf6 {[%clk 0:00:11]}  Qd4+ {[%clk 0:00:09]} 90. Kf5 {[%clk 0:00:12]}  f3 {[%clk 0:00:09]} 91. b8=Q {[%clk 0:00:12]}  f2 {[%clk 0:00:10]} 92. Qbb7+ {[%clk 0:00:11]}  Kg1 {[%clk 0:00:10]} 93. Qc1+ {[%clk 0:00:11]}  f1=Q+ {[%clk 0:00:09]} 94. Qxf1+ {[%clk 0:00:08]}  Kxf1 {[%clk 0:00:10]} 95. Qb1+ {[%clk 0:00:07]}  Kf2 {[%clk 0:00:10]} 96. Qc2+ {[%clk 0:00:07]}  Kg3 {[%clk 0:00:11]} 97. Qb3+ {[%clk 0:00:07]}  Kh4 {[%clk 0:00:11]} 98. Qb1 {[%clk 0:00:05]}  Qf2+ {[%clk 0:00:09]} 99. Ke4 {[%clk 0:00:05]}  Kg3 {[%clk 0:00:09]} 100. Qb8+ {[%clk 0:00:04]}  Kg2 {[%clk 0:00:09]} 101. Ke5 {[%clk 0:00:04]}  g3 {[%clk 0:00:09]} 102. Qb7+ {[%clk 0:00:04]}  Kg1 {[%clk 0:00:09]} 103. Qb1+ {[%clk 0:00:04]}  Kh2 {[%clk 0:00:10]} 104. Qh7+ {[%clk 0:00:04]}  Kg2 {[%clk 0:00:10]} 105. Qe4+ {[%clk 0:00:04]}  Qf3 {[%clk 0:00:10]} 106. Qc2+ {[%clk 0:00:04]}  Kh3 {[%clk 0:00:11]} 107. Qh7+ {[%clk 0:00:04]}  Kg2 {[%clk 0:00:11]} 108. Qc2+ {[%clk 0:00:04]}  Kh1 {[%clk 0:00:11]} 109. Qb1+ {[%clk 0:00:04]}  Kh2 {[%clk 0:00:11]} 110. Qc2+ {[%clk 0:00:05]}  g2 {[%clk 0:00:11]} 111. Qh7+ {[%clk 0:00:05]}  Qh3 {[%clk 0:00:11]} 112. Qc2 {[%clk 0:00:03]}  Qg3+ {[%clk 0:00:11]} 113. Ke4 {[%clk 0:00:03]}  Kh1 {[%clk 0:00:12]} 0-1


[Site "https://www.chess.com"]

[Event "Titled Tuesday Blitz July 6 2021"]
[White "Golubenko, Valentina"]
[Black "Gontcharov, Vladislav"]
[WhiteFideId "4501993"]
[BlackFideId "4123492"]
[WhiteElo "2164"]
[BlackElo "2503"]
[Result "0-1"]
[Round "07"]
[TimeControl "180+1"]
[Date "2021.07.06"]
[WhiteClock "0:00:15"]
[BlackClock "0:00:59"]

1. d4 {[%clk 0:03:00]}  Nf6 {[%clk 0:02:58]} 2. g3 {[%clk 0:03:00]}  g6 {[%clk 0:02:58]} 3. Bg2 {[%clk 0:03:00]}  Bg7 {[%clk 0:02:58]} 4. c4 {[%clk 0:03:00]}  O-O {[%clk 0:02:55]} 5. Nc3 {[%clk 0:03:00]}  c5 {[%clk 0:02:55]} 6. d5 {[%clk 0:03:00]}  d6 {[%clk 0:02:55]} 7. Nf3 {[%clk 0:03:00]}  Bg4 {[%clk 0:02:55]} 8. O-O {[%clk 0:03:00]}  Qd7 {[%clk 0:02:50]} 9. e4 {[%clk 0:02:49]}  Bh3 {[%clk 0:02:47]} 10. e5 {[%clk 0:02:42]}  Bxg2 {[%clk 0:02:43]} 11. exf6 {[%clk 0:01:53]}  Bxf3 {[%clk 0:02:42]} 12. Qxf3 {[%clk 0:01:42]}  Bxf6 {[%clk 0:02:42]} 13. Bh6 {[%clk 0:01:42]}  Re8 {[%clk 0:02:32]} 14. Rfe1 {[%clk 0:01:41]}  Qf5 {[%clk 0:02:25]} 15. Qxf5 {[%clk 0:01:34]}  gxf5 {[%clk 0:02:24]} 16. Nb5 {[%clk 0:01:34]}  Na6 {[%clk 0:02:24]} 17. Rab1 {[%clk 0:01:33]}  Red8 {[%clk 0:02:16]} 18. Re2 {[%clk 0:01:30]}  Rd7 {[%clk 0:02:16]} 19. Rbe1 {[%clk 0:01:19]}  Nc7 {[%clk 0:02:13]} 20. Nc3 {[%clk 0:01:12]}  Re8 {[%clk 0:01:41]} 21. h4 {[%clk 0:01:11]}  a6 {[%clk 0:01:35]} 22. a4 {[%clk 0:00:51]}  b5 {[%clk 0:01:32]} 23. axb5 {[%clk 0:00:48]}  axb5 {[%clk 0:01:32]} 24. cxb5 {[%clk 0:00:25]}  Bxc3 {[%clk 0:01:28]} 25. bxc3 {[%clk 0:00:25]}  Nxd5 {[%clk 0:01:29]} 26. c4 {[%clk 0:00:20]}  Nb6 {[%clk 0:01:28]} 27. Bg5 {[%clk 0:00:19]}  e5 {[%clk 0:01:14]} 28. Rc2 {[%clk 0:00:17]}  Kg7 {[%clk 0:01:13]} 29. Bd2 {[%clk 0:00:16]}  Ra8 {[%clk 0:01:10]} 30. Rd1 {[%clk 0:00:16]}  f6 {[%clk 0:01:05]} 31. Be3 {[%clk 0:00:16]}  Kf7 {[%clk 0:01:04]} 32. Bxc5 {[%clk 0:00:16]}  dxc5 {[%clk 0:01:03]} 33. Rxd7+ {[%clk 0:00:15]}  Nxd7 {[%clk 0:01:03]} 34. Rd2 {[%clk 0:00:16]}  Ke6 {[%clk 0:01:03]} 35. Rd5 {[%clk 0:00:14]}  Ra4 {[%clk 0:01:00]} 36. b6 {[%clk 0:00:15]}  Rxc4 {[%clk 0:00:59]} 0-1


[Site "https://www.chess.com"]

[Event "Titled Tuesday Blitz July 6 2021"]
[White "Golubev, Mikhail"]
[Black "Bilych, Olexiy"]
[WhiteFideId "14100983"]
[BlackFideId "14156504"]
[WhiteElo "2374"]
[BlackElo "2246"]
[Result "0-1"]
[Round "07"]
[TimeControl "180+1"]
[Date "2021.07.06"]
[WhiteClock "0:02:09"]
[BlackClock "0:01:41"]

1. e4 {[%clk 0:03:00]}  Nf6 {[%clk 0:02:58]} 2. e5 {[%clk 0:03:00]}  Nd5 {[%clk 0:02:58]} 3. d4 {[%clk 0:02:59]}  d6 {[%clk 0:02:59]} 4. Nf3 {[%clk 0:02:59]}  dxe5 {[%clk 0:02:59]} 5. Nxe5 {[%clk 0:02:59]}  g6 {[%clk 0:02:58]} 6. Bc4 {[%clk 0:02:51]}  Be6 {[%clk 0:02:58]} 7. O-O {[%clk 0:02:48]}  Bg7 {[%clk 0:02:58]} 8. Bb3 {[%clk 0:02:47]}  O-O {[%clk 0:02:58]} 9. Re1 {[%clk 0:02:46]}  c6 {[%clk 0:02:58]} 10. Nd2 {[%clk 0:02:41]}  Nd7 {[%clk 0:02:57]} 11. Nef3 {[%clk 0:02:41]}  a5 {[%clk 0:02:54]} 12. Rxe6 {[%clk 0:02:32]}  fxe6 {[%clk 0:02:54]} 13. Ng5 {[%clk 0:02:32]}  Bxd4 {[%clk 0:02:07]} 14. Nxe6 {[%clk 0:02:23]}  Bxf2+ {[%clk 0:02:06]} 15. Kh1 {[%clk 0:02:23]}  Qb6 {[%clk 0:02:04]} 16. Nxf8 {[%clk 0:02:20]}  Rxf8 {[%clk 0:02:04]} 17. Ne4 {[%clk 0:02:19]}  Qd4 {[%clk 0:01:46]} 18. Nxf2 {[%clk 0:02:09]}  Qxd1+ {[%clk 0:01:41]} 0-1


[Site "https://www.chess.com"]

[Event "Titled Tuesday Blitz July 6 2021"]
[White "Harshavardhan G B"]
[Black "Praveen, Kumar C"]
[WhiteFideId "25059009"]
[BlackFideId "5007372"]
[WhiteElo "1825"]
[BlackElo "2236"]
[Result "1-0"]
[Round "07"]
[TimeControl "180+1"]
[Date "2021.07.06"]
[WhiteClock "0:02:15"]
[BlackClock "0:01:42"]

1. e4 {[%clk 0:03:00]}  e6 {[%clk 0:02:57]} 2. d4 {[%clk 0:02:58]}  d5 {[%clk 0:02:57]} 3. Bd3 {[%clk 0:02:57]}  Nf6 {[%clk 0:02:56]} 4. e5 {[%clk 0:02:56]}  Nfd7 {[%clk 0:02:55]} 5. Ne2 {[%clk 0:02:56]}  c5 {[%clk 0:02:56]} 6. c3 {[%clk 0:02:56]}  Nc6 {[%clk 0:02:56]} 7. O-O {[%clk 0:02:55]}  Be7 {[%clk 0:02:55]} 8. Be3 {[%clk 0:02:53]}  Qb6 {[%clk 0:02:35]} 9. Nd2 {[%clk 0:02:46]}  cxd4 {[%clk 0:02:33]} 10. cxd4 {[%clk 0:02:44]}  f6 {[%clk 0:02:33]} 11. Nb3 {[%clk 0:02:33]}  f5 {[%clk 0:02:30]} 12. Nf4 {[%clk 0:02:29]}  Ndb8 {[%clk 0:02:04]} 13. g4 {[%clk 0:02:26]}  O-O {[%clk 0:02:03]} 14. gxf5 {[%clk 0:02:24]}  exf5 {[%clk 0:01:55]} 15. Nxd5 {[%clk 0:02:21]}  Qd8 {[%clk 0:01:55]} 16. Bc4 {[%clk 0:02:21]}  Kh8 {[%clk 0:01:53]} 17. Nxe7 {[%clk 0:02:19]}  Qxe7 {[%clk 0:01:51]} 18. f4 {[%clk 0:02:17]}  a5 {[%clk 0:01:46]} 19. d5 {[%clk 0:02:16]}  a4 {[%clk 0:01:42]} 20. Bc5 {[%clk 0:02:15]} 1-0


[Site "https://www.chess.com"]